bitfinex/quotes_SOLUSD_20240621
["timestamp","ask_amount","ask_price","bid_price","bid_amount"]
[1719003927572,5.9746,133.9,133.85,5.9764]
[1719003927755,22.494,133.89,133.82,5.9778]
[1719003927968,5.9756,133.88,133.82,5.9778]
[1719003928300,28.4692,133.89,133.83,5.9777]
[1719003928658,22.494,133.89,133.83,5.9777]
[1719003928982,22.494,133.89,133.8,14.9467]
[1719003929368,22.494,133.89,133.85,5.9768]
[1719003929606,22.494,133.89,133.81,14.9455]
[1719003929917,22.494,133.89,133.84,5.977]
[1719003930413,28.469,133.89,133.84,5.977]
[1719003930802,22.494,133.89,133.84,5.977]
[1719003931998,22.494,133.89,133.75,15.4782]
[1719003932200,22.494,133.89,133.79,5.9793]
[1719003932201,80.2788,133.88,133.79,5.9793]
[1719003932391,5.9771,133.85,133.79,5.9793]
[1719003932593,0.17,133.84,133.79,5.9793]
[1719003932810,6.4253,133.83,133.78,5.9798]
[1719003932995,12.4031,133.83,133.75,15.4782]
[1719003933509,11.9031,133.83,133.75,15.4782]
[1719003933684,5.9253,133.83,133.76,14.952]
[1719003933887,5.9253,133.83,133.79,5.9792]
[1719003934287,5.9253,133.83,133.78,5.9797]
[1719003935912,11.903,133.83,133.78,5.9797]
[1719003936607,5.9253,133.83,133.78,5.9797]
[1719003936814,5.9253,133.83,133.76,14.952]
[1719003937204,5.9253,133.83,133.8,5.979]
[1719003938514,5.9768,133.85,133.8,5.979]
[1719003938807,5.9768,133.85,133.79,5.9793]
[1719003939010,5.9773,133.84,133.79,5.9793]
[1719003939311,6.0107,133.86,133.78,14.949]
[1719003939614,11.9872,133.86,133.8,5.9788]
[1719003939909,11.4872,133.86,133.8,5.9788]
[1719003941011,5.5107,133.86,133.75,15.4782]
[1719003941213,21.408,133.83,133.78,5.9799]
[1719003941400,15.4299,133.83,133.78,5.9799]
[1719003941603,5.9788,133.81,133.71,43.1857]
[1719003941798,15.4299,133.83,133.71,43.1857]
[1719003941799,15.4299,133.83,133.72,34.9565]
[1719003942116,0.17,133.82,133.72,20.0]
[1719003942412,20.34,133.82,133.72,14.9565]
[1719003942617,5.9787,133.81,133.75,5.981]
[1719003942917,6.0107,133.8,133.75,5.981]
[1719003943213,6.0107,133.8,133.76,5.9807]
[1719003943424,6.0107,133.8,133.72,14.9565]
[1719003943716,6.0107,133.8,133.75,5.981]
[1719003944027,6.0107,133.8,133.75,5.9811]
[1719003948359,6.0107,133.8,133.76,5.9807]
[1719003950122,0.17,133.79,133.74,5.9813]
[1719003950312,0.17,133.79,133.75,5.9812]
[1719003950508,11.99,133.8,133.75,5.9812]
[1719003951307,11.99,133.8,133.74,5.9815]
[1719003954839,5.9796,133.79,133.73,5.982]
[1719003955011,15.4299,133.78,133.73,5.982]
[1719003955415,21.4099,133.78,133.73,5.982]
[1719003958208,15.4299,133.78,133.73,5.982]
[1719003959431,9.41,133.76,133.73,5.982]
[1719003960734,9.41,133.75,133.71,5.9829]
[1719003960940,15.4299,133.78,133.71,5.9829]
[1719003960941,9.41,133.74,133.71,5.9829]
[1719003961646,6.1868,133.73,133.65,16.163]
[1719003961935,16.5575,133.72,133.66,9.41]
[1719003962131,9.41,133.71,133.67,5.9846]
[1719003962311,16.5575,133.72,133.66,9.41]
[1719003962631,9.41,133.71,133.68,5.9841]
[1719003963730,25.9675,133.72,133.68,5.9841]
[1719003964547,25.9675,133.72,133.67,9.41]
[1719003964719,25.8579,133.76,133.71,9.41]
[1719003964920,25.8579,133.76,133.71,15.3929]
[1719003965429,16.4479,133.76,133.71,5.9829]
[1719003966236,5.9814,133.75,133.65,6.5952]
[1719003966448,16.4479,133.76,133.7,5.9832]
[1719003966449,16.7879,133.76,133.7,5.9832]
[1719003966653,22.7688,133.76,133.7,5.9832]
[1719003966947,5.9814,133.75,133.69,5.9837]
[1719003968350,5.9817,133.74,133.69,5.9837]
[1719003968651,5.9815,133.75,133.7,5.9835]
[1719003968849,0.34,133.74,133.7,5.9835]
[1719003969047,6.3219,133.74,133.66,34.9623]
[1719003969341,6.1522,133.73,133.67,5.9846]
[1719003969843,0.17,133.73,133.67,5.9846]
[1719003970047,6.2494,133.72,133.62,44.403]
[1719003970233,6.2494,133.72,133.62,16.163]
[1719003970234,16.4479,133.7,133.62,16.163]
[1719003970948,16.4479,133.7,133.66,5.9852]
[1719003971262,16.4479,133.7,133.62,16.163]
[1719003971263,16.4479,133.7,133.67,5.9847]
[1719003971949,6.2494,133.72,133.63,22.5]
[1719003972163,6.2494,133.72,133.64,20.34]
[1719003972819,6.2494,133.76,133.72,5.9823]
[1719003973019,16.4479,133.77,133.75,5.9812]
[1719003973253,6.2494,133.79,133.76,5.9808]
[1719003973558,5.9802,133.78,133.69,28.24]
[1719003973727,5.9802,133.78,133.7,20.0]
[1719003974333,12.229,133.79,133.73,5.9818]
[1719003976154,6.2494,133.79,133.72,5.9824]
[1719003976323,6.2494,133.79,133.71,5.9829]
[1719003976324,5.9804,133.77,133.71,5.9829]
[1719003977347,6.3201,133.78,133.72,5.9825]
[1719003977723,6.3201,133.78,133.73,5.9821]
[1719003978394,6.3201,133.78,133.72,5.9825]
[1719003979038,5.9804,133.77,133.71,5.9828]
[1719003979436,6.3201,133.78,133.69,14.959]
[1719003979861,0.34,133.78,133.73,5.9821]
[1719003980041,20.34,133.78,133.73,5.9821]
[1719003980453,26.32,133.78,133.72,5.9824]
[1719003980957,26.32,133.78,133.73,5.9821]
[1719003981524,6.2494,133.79,133.75,5.9809]
[1719003982368,6.2494,133.79,133.77,5.9802]
[1719003982580,6.2494,133.79,133.76,5.9806]
[1719003983047,6.2494,133.79,133.75,5.9811]
[1719003983234,6.2494,133.79,133.74,5.9816]
[1719003983858,6.2494,133.79,133.75,5.9812]
[1719003984431,16.4479,133.81,133.77,5.9799]
[1719003984848,16.4479,133.81,133.76,5.9806]
[1719003985071,22.4266,133.81,133.75,5.9811]
[1719003985359,22.4266,133.81,133.76,5.9808]
[1719003985662,5.9791,133.8,133.75,5.9811]
[1719003986043,22.4266,133.81,133.75,5.9811]
[1719003986766,22.4266,133.81,133.76,5.9808]
[1719003987869,16.4479,133.81,133.76,5.9808]
[1719003990673,16.4479,133.81,133.75,5.981]
[1719003990674,5.9791,133.8,133.75,5.981]
[1719003990882,5.9797,133.79,133.74,5.9816]
[1719003991372,9.41,133.78,133.74,5.9816]
[1719003992480,9.41,133.78,133.73,5.9821]
[1719003992773,9.41,133.77,133.73,5.9821]
[1719003993144,15.7882,133.77,133.73,5.9821]
[1719003993350,6.3782,133.77,133.73,5.9821]
[1719003993651,15.7882,133.77,133.73,5.9821]
[1719003995602,16.345,133.76,133.71,15.3929]
[1719003995753,9.41,133.74,133.7,5.9833]
[1719003996775,9.41,133.74,133.71,5.9829]
[1719003997458,22.496,133.76,133.71,5.9829]
[1719003998955,6.3966,133.71,133.61,6.5269]
[1719003999155,12.3801,133.71,133.65,5.9856]
[1719003999385,21.9135,133.7,133.63,14.9665]
[1719003999812,15.93,133.7,133.65,5.9857]
[1719004000081,15.93,133.7,133.63,14.9665]
[1719004000082,15.93,133.7,133.62,5.9869]
[1719004000253,0.17,133.69,133.63,5.9865]
[1719004000453,6.3241,133.69,133.63,5.9865]
[1719004002278,5.9844,133.68,133.63,5.9865]
[1719004003177,5.9844,133.68,133.59,14.971]
[1719004003389,5.9844,133.68,133.62,5.9869]
[1719004005364,12.3823,133.66,133.6,5.9877]
[1719004006258,5.9858,133.65,133.6,5.9877]
[1719004006663,12.3821,133.66,133.6,5.9877]
[1719004008299,6.3966,133.66,133.61,5.9875]
[1719004008594,6.3966,133.66,133.6,14.97]
[1719004008769,6.3966,133.66,133.62,5.9868]
[1719004009706,6.3966,133.66,133.63,5.9865]
[1719004010172,6.3966,133.66,133.62,5.9869]
[1719004011494,6.3966,133.66,133.63,5.9866]
[1719004012906,6.3966,133.66,133.62,5.9869]
[1719004013268,12.3807,133.69,133.6,14.97]
[1719004013671,12.3807,133.69,133.63,5.9864]
[1719004014073,5.9844,133.68,133.62,5.9869]
[1719004015100,5.9849,133.67,133.61,5.9874]
[1719004015291,5.986,133.65,133.55,68.2065]
[1719004015594,5.9855,133.66,133.6,5.988]
[1719004018598,5.9855,133.66,133.61,5.9875]
[1719004019591,5.9855,133.66,133.6,5.9878]
[1719004019771,15.6037,133.65,133.6,5.9878]
[1719004020392,15.6037,133.65,133.61,5.9875]
[1719004020797,15.6037,133.65,133.6,5.9878]
[1719004021689,15.6037,133.65,133.61,5.9875]
[1719004022782,15.6037,133.65,133.59,14.9709]
[1719004022993,15.6037,133.65,133.62,5.9869]
[1719004023316,15.6037,133.65,133.63,5.9866]
[1719004023599,15.6037,133.65,133.59,14.9709]
[1719004023600,15.6037,133.65,133.62,5.9869]
[1719004023987,15.6037,133.65,133.61,5.9873]
[1719004025399,15.6037,133.65,133.61,15.4173]
[1719004026902,15.6037,133.65,133.61,9.43]
[1719004027104,25.0337,133.65,133.6,9.43]
[1719004027278,15.6037,133.65,133.61,9.43]
[1719004027972,21.5896,133.65,133.6,5.988]
[1719004028200,31.0196,133.65,133.6,15.418]
[1719004028418,31.0196,133.65,133.6,9.43]
[1719004028707,31.0196,133.65,133.6,15.4179]
[1719004029684,25.0337,133.65,133.6,15.4179]
[1719004030699,25.0337,133.65,133.61,5.9875]
[1719004031011,27.9843,133.69,133.63,9.43]
[1719004031303,9.43,133.68,133.57,14.9725]
[1719004031604,15.415,133.67,133.62,9.43]
[1719004032310,15.415,133.67,133.62,15.417]
[1719004033195,15.415,133.67,133.61,5.9875]
[1719004033391,15.4154,133.66,133.61,5.9875]
[1719004033596,9.43,133.64,133.61,5.9875]
[1719004033892,9.43,133.64,133.6,5.9878]
[1719004034687,9.43,133.64,133.61,5.9872]
[1719004034892,9.43,133.65,133.61,5.9872]
[1719004039630,9.43,133.66,133.62,5.9868]
[1719004039800,9.43,133.68,133.63,9.43]
[1719004040000,9.43,133.68,133.64,5.9861]
[1719004040199,9.43,133.68,133.63,9.43]
[1719004040409,9.43,133.68,133.64,5.9861]
[1719004040725,9.43,133.68,133.63,15.4164]
[1719004042542,9.43,133.67,133.61,5.9873]
[1719004042839,9.43,133.66,133.61,5.9873]
[1719004043011,9.43,133.66,133.61,15.4173]
[1719004044046,5.9851,133.67,133.61,15.4173]
[1719004044340,15.4151,133.67,133.62,5.987]
[1719004045035,15.4151,133.67,133.62,15.417]
[1719004045241,15.4151,133.67,133.62,9.43]
[1719004049422,5.9854,133.66,133.62,9.43]
[1719004049921,5.9854,133.66,133.61,9.43]
[1719004050455,9.43,133.64,133.56,14.9744]
[1719004050669,5.9867,133.63,133.58,15.4186]
[1719004050949,15.4165,133.64,133.59,15.4184]
[1719004051347,9.43,133.64,133.59,15.4184]
[1719004051944,5.9845,133.68,133.63,9.43]
[1719004052118,5.9845,133.68,133.59,14.9703]
[1719004052119,9.43,133.68,133.59,14.9703]
[1719004052451,9.43,133.67,133.58,0.17]
[1719004052616,36.9603,133.69,133.59,5.9881]
[1719004052617,5.986,133.65,133.59,5.9881]
[1719004052823,5.9855,133.66,133.6,5.988]
[1719004053123,5.9855,133.66,133.61,9.43]
[1719004053341,0.17,133.67,133.61,9.43]
[1719004053342,6.3258,133.65,133.61,9.43]
[1719004053545,15.4154,133.66,133.61,9.43]
[1719004054716,9.43,133.66,133.61,15.4175]
[1719004054923,15.415,133.67,133.62,9.43]
[1719004055251,9.43,133.67,133.62,15.4171]
[1719004055548,22.0003,133.69,133.63,5.9866]
[1719004055549,27.9845,133.69,133.63,5.9866]
[1719004055756,27.9845,133.69,133.64,9.43]
[1719004055933,37.4145,133.69,133.64,9.43]
[1719004056330,5.9844,133.68,133.64,9.43]
[1719004056848,15.4144,133.68,133.63,9.43]
[1719004057436,15.4144,133.68,133.62,5.9869]
[1719004057643,15.4145,133.68,133.63,9.43]
[1719004058155,5.9848,133.67,133.63,9.43]
[1719004058755,15.4146,133.68,133.63,9.43]
[1719004059765,5.9853,133.66,133.6,5.9878]
[1719004059942,5.9853,133.66,133.62,9.43]
[1719004060661,9.6,133.67,133.62,9.43]
[1719004060662,9.6,133.67,133.62,15.417]
[1719004060871,15.4145,133.68,133.63,9.43]
[1719004061167,5.9849,133.67,133.63,9.43]
[1719004061353,15.4149,133.67,133.62,9.43]
[1719004061528,15.4145,133.68,133.63,9.43]
[1719004064870,5.9845,133.68,133.63,9.43]
[1719004065048,15.4145,133.68,133.63,9.43]
[1719004066660,0.17,133.67,133.58,6.2149]
[1719004066864,9.43,133.65,133.6,5.9877]
[1719004067172,9.43,133.65,133.6,15.4177]
[1719004070860,9.43,133.65,133.61,9.43]
[1719004071664,15.4155,133.66,133.61,9.43]
[1719004074866,15.4155,133.66,133.6,5.9877]
[1719004075050,15.4155,133.66,133.61,9.43]
[1719004078065,5.9855,133.66,133.61,9.43]
[1719004078266,15.4155,133.66,133.61,9.43]
[1719004079064,15.5861,133.65,133.6,9.43]
[1719004081755,12.82152528,133.67,133.6,9.43]
[1719004081964,22.0003,133.69,133.6,9.43]
[1719004081965,22.0003,133.69,133.65,5.9857]
[1719004082271,15.6037,133.69,133.66,5.9853]
[1719004082473,9.43,133.7,133.66,5.9853]
[1719004082780,22.25716955,133.71,133.66,9.43]
[1719004082960,28.24036955,133.71,133.66,9.43]
[1719004083274,5.9835,133.7,133.66,9.43]
[1719004083501,5.984,133.69,133.65,9.43]
[1719004084077,15.4136,133.7,133.65,9.43]
[1719004085845,12.82773764,133.71,133.66,15.4153]
[1719004086054,36.9845,133.72,133.67,9.43]
[1719004086359,31.0016,133.76,133.71,9.43]
[1719004086556,31.0016,133.76,133.66,14.9629]
[1719004086557,21.5716,133.76,133.72,9.43]
[1719004086758,27.5524,133.76,133.72,9.43]
[1719004087087,5.9818,133.74,133.65,15.1689]
[1719004087243,5.9818,133.74,133.67,5.9846]
[1719004087448,5.9818,133.74,133.7,9.43]
[1719004087662,15.4114,133.75,133.7,9.43]
[1719004087881,15.4114,133.75,133.71,9.43]
[1719004088180,5.9814,133.75,133.71,9.43]
[1719004090880,37.3226,133.76,133.71,9.43]
[1719004091049,0.17,133.75,133.71,9.43]
[1719004091378,6.3213,133.75,133.71,9.43]
[1719004091677,15.7513,133.75,133.7,9.43]
[1719004091883,15.7513,133.75,133.69,5.9839]
[1719004092067,15.7513,133.75,133.7,9.43]
[1719004092883,15.7513,133.75,133.69,5.9839]
[1719004093197,15.7513,133.75,133.7,9.43]
[1719004093555,21.5716,133.76,133.71,15.413]
[1719004093770,31.0016,133.76,133.71,15.413]
[1719004093991,36.9825,133.76,133.71,9.43]
[1719004094171,5.9816,133.75,133.69,5.9838]
[1719004094488,15.4116,133.75,133.7,9.43]
[1719004096394,15.4116,133.75,133.69,5.9838]
[1719004096604,15.4116,133.75,133.7,9.43]
[1719004096897,15.4116,133.75,133.7,15.4134]
[1719004096898,9.43,133.75,133.7,15.4134]
[1719004097102,27.5525,133.76,133.71,15.413]
[1719004097103,36.9825,133.76,133.71,15.413]
[1719004097405,36.9825,133.76,133.71,9.43]
[1719004098102,21.5716,133.76,133.71,15.413]
[1719004098302,9.43,133.78,133.73,15.4121]
[1719004098616,36.9812,133.79,133.74,9.43]
[1719004099678,27.5512,133.79,133.74,9.43]
[1719004100007,5.9789,133.81,133.76,9.43]
[1719004100213,37.9405,133.82,133.77,9.43]
[1719004100708,28.5105,133.82,133.78,9.43]
[1719004101402,22.5322,133.82,133.78,9.43]
[1719004102296,28.5104,133.82,133.78,9.43]
[1719004103183,5.9768,133.85,133.79,5.9793]
[1719004103412,22.5322,133.86,133.82,9.43]
[1719004104111,16.4898,133.86,133.83,9.43]
[1719004104313,5.9763,133.87,133.83,9.43]
[1719004104784,5.9765,133.86,133.8,5.9788]
[1719004105105,5.9765,133.86,133.82,9.43]
[1719004106103,5.9761,133.87,133.82,9.43]
[1719004106280,5.9763,133.86,133.82,9.43]
[1719004107514,14.94,133.87,133.76,15.3731]
[1719004107819,14.94,133.87,133.79,9.43]
[1719004107820,0.17,133.86,133.79,9.43]
[1719004108115,9.43,133.84,133.79,9.43]
[1719004108315,15.4074,133.84,133.79,9.43]
[1719004108688,9.43,133.84,133.79,15.4094]
[1719004108914,15.7465,133.86,133.8,5.979]
[1719004109216,5.9768,133.85,133.81,9.43]
[1719004109418,15.7465,133.86,133.81,9.43]
[1719004109914,9.43,133.85,133.8,15.409]
[1719004110715,9.43,133.85,133.81,9.43]
[1719004110929,15.7465,133.86,133.81,9.43]
[1719004112006,15.7465,133.86,133.8,5.979]
[1719004112204,15.7465,133.86,133.8,15.409]
[1719004113393,15.4068,133.85,133.8,9.43]
[1719004113985,9.43,133.83,133.76,15.3731]
[1719004114189,0.34,133.86,133.79,5.9795]
[1719004114190,5.9772,133.85,133.79,5.9795]
[1719004114409,9.43,133.84,133.79,15.4095]
[1719004114717,9.43,133.85,133.8,15.409]
[1719004115288,9.77,133.86,133.81,5.9785]
[1719004115492,9.77,133.86,133.81,15.4085]
[1719004115706,15.7463,133.86,133.81,15.4085]
[1719004115911,15.7463,133.86,133.81,9.43]
[1719004116997,5.9771,133.85,133.79,5.9794]
[1719004117186,15.4071,133.85,133.79,5.9794]
[1719004117511,0.34,133.86,133.76,15.3731]
[1719004117714,9.43,133.83,133.78,15.4099]
[1719004118091,15.4077,133.83,133.77,5.9802]
[1719004118532,15.4077,133.83,133.78,9.43]
[1719004118818,9.43,133.83,133.78,15.4099]
[1719004119691,0.34,133.86,133.79,5.9794]
[1719004120015,15.4073,133.84,133.79,15.4094]
[1719004120214,9.43,133.84,133.79,15.4094]
[1719004120815,15.4074,133.84,133.79,9.43]
[1719004122518,9.43,133.83,133.79,9.43]
[1719004123119,5.9769,133.85,133.79,15.4094]
[1719004123426,15.4069,133.85,133.8,15.409]
[1719004123921,15.4069,133.85,133.79,5.9793]
[1719004124125,9.43,133.84,133.79,15.4093]
[1719004124306,9.43,133.84,133.79,5.9793]
[1719004124616,15.4073,133.84,133.78,5.9798]
[1719004124793,9.43,133.83,133.78,5.9798]
[1719004124998,9.43,133.83,133.78,15.4098]
[1719004125614,15.4077,133.83,133.78,9.43]
[1719004127019,15.4077,133.83,133.78,5.9799]
[1719004127209,15.4077,133.83,133.77,5.9802]
[1719004127412,15.4077,133.83,133.78,9.43]
[1719004128118,15.4077,133.83,133.77,5.9802]
[1719004128299,15.4077,133.83,133.78,9.43]
[1719004129132,5.9778,133.83,133.77,5.9801]
[1719004129310,5.9778,133.83,133.76,15.3731]
[1719004129311,15.4078,133.83,133.78,15.4099]
[1719004129504,15.4078,133.83,133.78,9.43]
[1719004130232,9.43,133.83,133.78,15.4098]
[1719004130602,15.5774,133.84,133.79,9.43]
[1719004131014,6.1474,133.84,133.79,9.43]
[1719004131423,15.5774,133.84,133.79,9.43]
[1719004131927,15.4074,133.84,133.79,9.43]
[1719004132331,15.4074,133.84,133.78,5.9798]
[1719004132533,5.9777,133.83,133.79,9.43]
[1719004133214,5.9777,133.83,133.77,5.9802]
[1719004133534,5.9777,133.83,133.79,9.43]
[1719004135644,15.4082,133.82,133.77,9.43]
[1719004136844,5.9787,133.81,133.76,15.3731]
[1719004137012,5.9787,133.81,133.77,9.43]
[1719004137719,5.9793,133.8,133.72,15.0255]
[1719004137917,5.9793,133.8,133.74,5.9813]
[1719004138145,15.4095,133.79,133.74,5.9813]
[1719004138343,9.43,133.79,133.74,15.4113]
[1719004138518,21.9945,133.79,133.68,15.0255]
[1719004138717,9.43,133.74,133.69,5.9839]
[1719004138917,24.382,133.77,133.68,15.0255]
[1719004138918,9.43,133.73,133.68,24.4555]
[1719004139118,5.9808,133.76,133.7,5.9834]
[1719004139336,9.43,133.76,133.71,15.413]
[1719004139738,9.43,133.75,133.7,15.4133]
[1719004140229,15.4114,133.75,133.7,9.43]
[1719004140430,9.43,133.75,133.7,9.43]
[1719004140945,9.43,133.75,133.7,15.4133]
[1719004141637,5.981,133.76,133.7,15.4133]
[1719004141936,9.43,133.75,133.7,15.4133]
[1719004142131,27.9741,133.79,133.73,5.9818]
[1719004142342,15.41,133.78,133.73,9.43]
[1719004142644,9.43,133.76,133.71,15.4129]
[1719004143020,15.4108,133.76,133.71,9.43]
[1719004144233,5.9808,133.76,133.71,9.43]
[1719004144430,15.4108,133.76,133.71,9.43]
[1719004144947,9.43,133.76,133.71,15.413]
[1719004146034,9.43,133.76,133.71,5.983]
[1719004146239,9.43,133.76,133.71,15.413]
[1719004146533,15.4109,133.76,133.71,9.43]
[1719004147453,9.43,133.76,133.71,15.413]
[1719004148582,15.4108,133.76,133.71,15.413]
[1719004149220,15.4124,133.73,133.67,5.9846]
[1719004149425,0.17,133.75,133.68,5.9842]
[1719004149426,9.43,133.72,133.68,5.9842]
[1719004149837,9.43,133.73,133.68,15.4142]
[1719004153861,15.4118,133.74,133.69,9.43]
[1719004158077,9.43,133.73,133.68,15.4142]
[1719004162095,9.43,133.73,133.68,5.9842]
[1719004162387,9.43,133.73,133.68,15.4142]
[1719004163585,15.4122,133.73,133.68,15.4142]
[1719004165891,15.4122,133.73,133.68,5.9842]
[1719004166189,15.4122,133.73,133.68,15.4142]
[1719004168298,5.9822,133.73,133.68,15.4142]
[1719004168495,15.4122,133.73,133.68,15.4142]
[1719004169294,15.4122,133.73,133.67,5.9847]
[1719004169600,15.4126,133.72,133.67,15.4147]
[1719004169973,9.43,133.72,133.67,5.9847]
[1719004170302,9.43,133.72,133.67,15.4147]
[1719004170963,9.43,133.72,133.65,37.9789]
[1719004170964,9.43,133.72,133.68,5.9844]
[1719004172201,5.9824,133.73,133.67,5.9846]
[1719004174775,5.9824,133.73,133.68,5.9843]
[1719004176377,5.9819,133.74,133.68,5.9843]
[1719004178008,5.9825,133.73,133.67,5.9845]
[1719004178186,22.5671,133.73,133.65,15.4689]
[1719004178713,28.5495,133.73,133.67,5.9846]
[1719004180097,28.5495,133.73,133.68,5.9843]
[1719004180287,22.5671,133.73,133.68,5.9843]
[1719004180489,28.5494,133.73,133.68,5.9843]
[1719004181407,28.5494,133.73,133.67,5.9847]
[1719004184794,28.5494,133.73,133.68,5.9843]
[1719004187128,28.5494,133.73,133.67,5.9846]
[1719004193233,5.9826,133.72,133.66,5.9852]
[1719004197733,5.9826,133.72,133.67,5.9847]
[1719004198334,28.5495,133.73,133.67,5.9847]
[1719004202213,5.9826,133.72,133.67,5.9847]
[1719004202941,28.5495,133.73,133.67,5.9847]
[1719004210248,5.9826,133.72,133.67,5.9847]
[1719004210631,5.9833,133.71,133.62,53.288]
[1719004210824,12.9055281,133.72,133.62,53.288]
[1719004210825,5.9843,133.69,133.62,15.8104]
[1719004211026,18.8885281,133.72,133.66,5.9852]
[1719004211961,12.9055281,133.72,133.64,22.51]
[1719004212124,20.93244303,133.77,133.7,14.9579]
[1719004212125,22.0756,133.77,133.7,14.9579]
[1719004212333,22.0756,133.77,133.73,5.982]
[1719004213051,22.0756,133.77,133.72,5.9824]
[1719004213223,28.056,133.77,133.71,5.9829]
[1719004213422,22.0756,133.77,133.71,5.9829]
[1719004213623,22.0756,133.77,133.72,5.9826]
[1719004215755,28.056,133.77,133.72,5.9826]
[1719004216557,22.0756,133.77,133.68,14.9609]
[1719004216855,37.0266,133.77,133.67,15.8104]
[1719004217065,5.9815,133.75,133.69,5.9838]
[1719004219934,22.0756,133.77,133.67,38.3204]
[1719004220232,21.8152,133.81,133.73,22.51]
[1719004220441,21.8152,133.81,133.77,5.9804]
[1719004220857,21.8152,133.81,133.76,5.9807]
[1719004222157,5.9793,133.8,133.74,5.9813]
[1719004222534,5.9793,133.8,133.75,5.9813]
[1719004222738,21.8152,133.81,133.75,5.9813]
[1719004223044,27.7939,133.81,133.75,5.9813]
[1719004224354,27.7939,133.81,133.76,5.9808]
[1719004225341,27.7939,133.81,133.75,5.9811]
[1719004226555,21.8152,133.81,133.72,38.9422]
[1719004226742,21.8152,133.81,133.73,0.34]
[1719004226943,27.794,133.81,133.76,5.9808]
[1719004227766,21.8152,133.81,133.76,5.9808]
[1719004228756,27.7938,133.81,133.76,5.9808]
[1719004232991,22.2547,133.85,133.74,22.51]
[1719004233196,22.2547,133.85,133.76,22.51]
[1719004233501,15.5653054,133.9,133.84,5.9772]
[1719004233502,30.0373527,133.89,133.84,5.9772]
[1719004233722,5.9755,133.88,133.82,5.978]
[1719004235596,28.2299,133.89,133.83,5.9776]
[1719004235888,22.2547,133.89,133.85,5.9767]
[1719004237070,22.2547,133.89,133.86,5.9762]
[1719004237390,16.122,133.89,133.86,5.9762]
[1719004237594,28.2284,133.92,133.86,5.9762]
[1719004239200,22.2547,133.92,133.87,5.9757]
[1719004239370,22.2547,133.92,133.84,14.9431]
[1719004239371,0.8857401,133.93,133.9,5.9743]
[1719004240872,0.8857401,133.93,133.89,5.9748]
[1719004241483,0.8857401,133.93,133.88,5.9753]
[1719004241873,0.8857401,133.93,133.89,5.9749]
[1719004242399,0.8857401,133.93,133.9,5.9745]
[1719004242970,0.8857401,133.93,133.89,5.9748]
[1719004244073,0.8857401,133.93,133.84,22.51]
[1719004244276,0.8857401,133.93,133.88,5.9752]
[1719004244806,6.8589401,133.93,133.88,5.9752]
[1719004245006,6.8589401,133.93,133.87,5.9758]
[1719004245675,6.8589401,133.93,133.88,5.9754]
[1719004246474,0.8857401,133.93,133.88,5.9754]